bitfinex/quotes_SOLUSD_20241213
["timestamp","ask_amount","ask_price","bid_price","bid_amount"]
[1734114199389,0.12549,221.97,221.87,30.0]
[1734114200580,0.25098,221.97,221.87,30.0]
[1734114200781,0.12549,221.95,221.87,30.0]
[1734114201281,0.12549,221.92,221.87,30.0]
[1734114201466,20.12549,221.92,221.87,30.0]
[1734114202281,20.12549,221.92,221.85,0.24102042]
[1734114202460,31.39079,221.92,221.85,0.24102042]
[1734114212462,1.6485,221.93,221.85,8.81427394]
[1734114212668,20.0,221.97,221.87,8.57325352]
[1734114212886,0.12549,221.97,221.87,8.57325352]
[1734114213083,12.9216,221.98,221.88,23.776884]
[1734114213469,12.9216,221.98,221.85,0.24102042]
[1734114213698,12.9216,221.98,221.87,8.57325352]
[1734114213921,1.6593,221.98,221.92,8.57325352]
[1734114214086,11.2607,222.01,221.93,8.57325352]
[1734114214285,1.85434694,222.04,221.93,8.57325352]
[1734114214717,1.85434694,222.04,221.94,23.776884]
[1734114215687,20.0,222.02,221.94,23.776884]
[1734114216119,1.85434694,222.04,221.94,32.35013752]
[1734114217007,1.85434694,222.04,221.94,23.776884]
[1734114217686,20.0,222.02,221.94,23.776884]
[1734114218815,20.0,222.02,221.93,23.776884]
[1734114219907,20.0,222.02,221.94,30.0]
[1734114221911,1.85434694,222.04,221.94,30.0]
[1734114222116,20.0,222.02,221.94,30.0]
[1734114222619,20.0,222.02,221.93,23.776884]
[1734114223494,20.0,222.02,221.93,32.35013752]
[1734114223910,20.0,222.02,221.92,8.57325352]
[1734114224093,20.0,222.02,221.93,23.776884]
[1734114225613,20.0,222.02,221.94,30.0]
[1734114225989,0.25098,222.01,221.94,30.0]
[1734114226191,0.12549,221.99,221.94,30.0]
[1734114226402,0.25098,221.99,221.94,30.0]
[1734114226912,0.25098,221.99,221.88,30.0]
[1734114227109,11.2622,221.98,221.88,30.0]
[1734114229120,0.25098,221.99,221.88,30.0]
[1734114229121,11.2632,221.96,221.88,30.0]
[1734114230198,1.75728,221.95,221.88,30.0]
[1734114231604,1.5063,221.95,221.88,30.0]
[1734114233223,20.0,221.93,221.88,30.0]
[1734114234724,20.0,221.93,221.85,0.24102042]
[1734114235318,1.5063,221.95,221.85,0.24102042]
[1734114235829,0.12549,221.94,221.85,30.24102042]
[1734114238707,1.5063,221.95,221.85,38.81427394]
[1734114239317,1.5063,221.95,221.85,30.24102042]
[1734114241022,0.25098,221.94,221.85,30.24102042]
[1734114241235,0.12549,221.93,221.85,30.24102042]
[1734114241436,0.12549,221.9,221.85,30.24102042]
[1734114241605,20.0,221.91,221.85,30.24102042]
[1734114241913,1.5063,221.95,221.87,8.57325352]
[1734114242112,1.6035,222.01,221.92,8.57325352]
[1734114243037,1.6035,222.01,221.93,8.57325352]
[1734114243243,1.6035,222.01,221.94,23.776884]
[1734114244524,1.6035,222.01,221.92,8.57325352]
[1734114246522,1.6035,222.01,221.93,30.0]
[1734114247839,0.20604694,222.04,222.0,32.35013752]
[1734114248040,0.20604694,222.04,222.03,32.35013752]
[1734114248239,0.20604694,222.04,222.03,38.64926084]
[1734114249057,0.20604694,222.04,222.03,68.64926084]
[1734114249939,0.20604694,222.04,222.03,69.3245915]
[1734114251323,0.20604694,222.04,222.03,74.12165326]
[1734114252615,0.20604694,222.04,222.03,74.37263326]
[1734114252855,12.7547,222.21,222.08,23.776884]
[1734114253128,12.7547,222.21,222.1,13.37031528]
[1734114253348,12.7547,222.21,222.11,23.776884]
[1734114253648,12.7547,222.21,222.11,37.14719928]
[1734114255620,12.7547,222.21,222.12,13.37031528]
[1734114255816,12.7547,222.21,222.11,13.49580528]
[1734114256628,12.7547,222.21,222.13,0.12549]
[1734114257358,12.7547,222.21,222.12,13.37031528]
[1734114257523,1.5037,222.21,222.15,13.37031528]
[1734114257846,1.6526,222.26,222.17,13.37031528]
[1734114258424,1.6526,222.26,222.18,13.37031528]
[1734114259466,1.6526,222.26,222.18,43.37031528]
[1734114260266,1.6526,222.26,222.19,37.27268928]
[1734114260466,1.6526,222.26,222.19,67.27268928]
[1734114260954,1.6526,222.26,222.19,53.902374]
[1734114262064,1.6526,222.26,222.19,23.902374]
[1734114262766,1.6526,222.26,222.18,13.37031528]
[1734114263357,12.9008,222.26,222.16,13.37031528]
[1734114263546,12.9008,222.26,222.17,30.0]
[1734114264448,0.12549,222.25,222.17,30.0]
[1734114265875,20.12549,222.25,222.17,30.0]
[1734114266175,0.12549,222.23,222.17,30.0]
[1734114267578,0.12549,222.23,222.13,13.37031528]
[1734114267876,0.12549,222.23,222.14,30.0]
[1734114269474,20.0,222.21,222.14,30.0]
[1734114272174,0.12549,222.23,222.14,30.0]
[1734114272678,20.0,222.21,222.14,30.0]
[1734114275975,0.12549,222.2,222.14,30.0]
[1734114276171,20.0,222.18,222.14,30.0]
[1734114276368,20.0,222.17,222.03,0.67524045]
[1734114276573,20.0,222.17,222.06,8.55330639]
[1734114276889,20.0,222.17,222.02,37.82267887]
[1734114277061,0.12549,222.16,222.07,30.0]
[1734114278088,20.0,222.12,222.07,30.0]
[1734114278256,20.0,222.12,222.02,14.77168526]
[1734114278458,20.0,222.12,222.04,30.0]
[1734114278986,0.12549,222.11,222.04,30.0]
[1734114280075,20.0,222.07,222.04,30.0]
[1734114280386,20.0,222.07,221.97,8.55330639]
[1734114280683,20.0,222.07,221.99,30.0]
[1734114283387,11.2577,222.07,221.99,29.5]
[1734114283763,11.2577,222.07,221.97,8.55330639]
[1734114283962,11.2577,222.07,221.95,32.45568039]
[1734114284270,20.0,222.04,221.93,6.3994]
[1734114284475,11.2587,222.05,221.93,8.55330639]
[1734114284670,0.12549,222.04,221.93,8.55330639]
[1734114284870,0.12549,222.04,221.94,20.14304509]
[1734114286703,0.12549,222.04,221.96,30.0]
[1734114289284,20.0,222.02,221.96,30.0]
[1734114290284,20.0,222.02,221.95,30.0]
[1734114292388,0.12549,222.04,221.95,30.0]
[1734114292711,20.0,222.02,221.95,30.0]
[1734114293301,20.0,222.02,221.94,30.0]
[1734114294387,1.5106,222.09,221.94,30.0]
[1734114294388,12.7677,222.09,221.99,8.55330639]
[1734114294769,12.7677,222.09,221.98,8.55330639]
[1734114294973,12.7677,222.09,221.97,8.55330639]
[1734114295689,20.0,222.06,221.98,8.55330639]
[1734114295994,0.12549,222.08,221.98,8.55330639]
[1734114296196,20.0,222.06,221.98,8.55330639]
[1734114297490,0.12549,222.08,221.98,8.55330639]
[1734114297702,0.12549,222.08,221.99,8.55330639]
[1734114298890,0.12549,222.08,221.98,8.55330639]
[1734114299090,0.12549,222.08,221.97,32.33019039]
[1734114299493,0.12549,222.06,221.94,20.0]
[1734114299697,0.12549,222.06,221.95,62.33019039]
[1734114299875,0.12549,222.06,221.95,53.776884]
[1734114300403,0.12549,222.06,221.95,30.0]
[1734114300574,20.0,222.04,221.95,30.0]
[1734114301270,0.12549,222.03,221.95,30.0]
[1734114301471,12.7901,222.02,221.95,30.0]
[1734114301706,0.12549,222.01,221.95,30.0]
[1734114302609,0.12549,222.01,221.9,8.55330639]
[1734114302897,0.12549,222.01,221.92,30.0]
[1734114303074,19.3795,222.02,221.92,38.55330639]
[1734114303482,20.12549,221.98,221.92,30.0]
[1734114303694,1.69879,221.93,221.92,30.0]
[1734114304081,1.69879,221.93,221.79,8.55330639]
[1734114304271,1.69879,221.93,221.8,30.0]
[1734114304477,1.69879,221.93,221.79,8.55330639]
[1734114304673,0.12549,221.91,221.77,8.1745]
[1734114304892,20.0,221.88,221.77,8.1745]
[1734114305402,0.12549,221.87,221.77,13.4069193]
[1734114307177,0.12549,221.88,221.77,13.4069193]
[1734114307374,20.0,221.86,221.76,13.4069193]
[1734114307604,20.12549,221.86,221.77,30.0]
[1734114308376,0.12549,221.86,221.77,43.4069193]
[1734114308584,20.0,221.88,221.8,13.4069193]
[1734114308881,1.5733,221.93,221.83,13.4069193]
[1734114309493,1.5733,221.93,221.82,13.4069193]
[1734114310190,1.5733,221.93,221.83,30.0]
[1734114310613,1.5733,221.93,221.84,13.4069193]
[1734114310823,1.6563,221.98,221.88,13.4069193]
[1734114311116,1.6563,221.98,221.89,13.4069193]
[1734114311285,1.6563,221.98,221.9,13.4069193]
[1734114311494,6.3681,222.02,221.9,13.4069193]
[1734114312295,6.3681,222.02,221.9,43.4069193]
[1734114312516,20.0,221.99,221.9,43.4069193]
[1734114312892,20.0,221.99,221.9,30.0]
[1734114313220,0.12549,221.98,221.9,30.0]
[1734114314097,20.0,221.99,221.9,30.0]
[1734114314925,0.12549,221.98,221.9,30.0]
[1734114316730,0.12549,221.98,221.85,13.64793972]
[1734114318431,0.12549,221.98,221.85,0.24102042]
[1734114319816,0.12549,221.98,221.85,30.24102042]
[1734114321230,0.12549,221.93,221.85,30.24102042]
[1734114321624,0.12549,221.89,221.85,30.24102042]
[1734114322348,0.12549,221.89,221.85,0.24102042]
[1734114323724,20.0,221.9,221.85,0.24102042]
[1734114324827,6.0739,221.93,221.85,0.24102042]
[1734114325730,0.12549,221.95,221.85,0.24102042]
[1734114325904,1.5436,221.96,221.85,0.24102042]
[1734114326104,20.0,221.94,221.85,0.24102042]
[1734114327630,20.0,221.94,221.85,43.64793972]
[1734114329425,20.0,221.94,221.85,38.81570289]
[1734114330021,20.0,221.94,221.85,30.24102042]
[1734114333112,0.12549,221.93,221.85,30.24102042]
[1734114335328,20.0,221.95,221.85,38.81570289]
[1734114336532,20.0,221.95,221.85,8.81570289]
[1734114336754,20.0,221.95,221.86,8.57468247]
[1734114338832,20.0,221.95,221.87,8.57468247]
[1734114339032,11.262,221.99,221.88,8.57468247]
[1734114339235,20.0,221.96,221.88,8.57468247]
[1734114339531,20.0,221.96,221.88,38.57468247]
[1734114340746,20.0,221.96,221.89,8.57468247]
[1734114341039,20.0,221.96,221.89,38.57468247]
[1734114344143,20.0,221.96,221.89,8.57468247]
[1734114345114,20.12549,222.0,221.91,8.57468247]
[1734114345318,20.0,222.0,221.92,8.57468247]
[1734114345719,11.2601,222.03,221.92,8.57468247]
[1734114345925,12.7743,222.06,221.95,8.57468247]
[1734114346929,12.7743,222.06,221.96,8.57468247]
[1734114347132,11.2567,222.09,221.98,8.57468247]
[1734114347332,11.2567,222.09,221.99,8.57468247]
[1734114347847,1.5161,222.11,221.99,8.57468247]
[1734114348338,1.5161,222.11,222.01,8.57468247]
[1734114348841,1.5161,222.11,222.01,32.47705647]
[1734114349046,1.5161,222.11,221.99,8.57468247]
[1734114349747,1.5161,222.11,222.0,30.0]
[1734114350144,0.12549,222.09,222.0,30.0]
[1734114350348,8.56191426,222.17,222.03,8.57468247]
[1734114350546,11.2546,222.14,222.04,8.57468247]
[1734114350927,11.2546,222.14,222.01,32.35156647]
[1734114351124,11.2546,222.14,222.02,30.0]
[1734114351625,20.0,222.09,222.02,30.0]
[1734114352023,20.0,222.09,221.95,8.57468247]
[1734114352239,0.12549,222.08,221.97,30.0]
[1734114353321,20.0,222.06,221.97,30.0]
[1734114357349,31.2583,222.06,221.97,30.0]
[1734114358248,31.2583,222.06,221.95,0.12549]
[1734114358433,31.2583,222.06,221.95,30.12549]
[1734114359946,0.12549,222.05,221.95,30.0]
[1734114360153,11.2592,222.04,221.95,30.0]
[1734114361060,20.0,222.01,221.92,30.0]
[1734114363363,20.0,222.01,221.92,43.38502156]
[1734114363655,20.0,222.01,221.92,30.0]
[1734114366339,11.2607,222.01,221.92,30.0]
[1734114366659,11.2607,222.01,221.91,0.12549]
[1734114366854,11.2607,222.01,221.91,13.51051156]
[1734114367552,11.2607,222.01,221.91,0.12549]
[1734114368842,11.2607,222.01,221.91,13.51051156]
[1734114369156,1.5203,222.08,221.96,13.38502156]
[1734114369357,11.2577,222.07,221.95,13.38502156]
[1734114369548,11.2577,222.07,221.96,30.0]
[1734114370556,11.2577,222.07,221.96,43.38502156]
[1734114370866,11.2577,222.07,221.97,13.38502156]
[1734114371059,11.2577,222.07,221.98,0.12549]
[1734114371241,11.2577,222.07,221.98,13.51051156]
[1734114371436,11.2577,222.07,221.98,0.12549]
[1734114372647,11.2577,222.07,221.98,30.12549]
[1734114372865,11.2577,222.07,221.98,43.51051156]
[1734114373247,1.5203,222.08,221.98,43.51051156]
[1734114373458,20.0,222.07,221.99,13.38502156]
[1734114373649,1.5203,222.08,222.0,13.38502156]
[1734114373967,11.2526,222.17,222.02,23.776884]
[1734114374145,1.505,222.18,222.09,13.38502156]
[1734114375079,1.505,222.18,222.1,13.38502156]
[1734114375250,1.5294,222.25,222.12,13.38502156]
[1734114375449,1.5294,222.25,222.11,13.51051156]
[1734114375657,1.5294,222.25,222.09,13.38502156]
[1734114375875,1.5294,222.25,222.09,23.776884]
[1734114376073,1.5294,222.25,222.1,0.12549]
[1734114376487,1.5294,222.25,222.1,13.51051156]
[1734114376853,12.7783,222.25,222.14,0.12549]
[1734114377060,1.5294,222.25,222.14,0.12549]
[1734114377260,1.5294,222.25,222.14,30.12549]
[1734114377876,1.5294,222.25,222.14,38.6782774]
[1734114378183,20.0,222.24,222.14,8.6782774]
[1734114379163,20.0,222.23,222.14,8.6782774]
[1734114381977,1.5294,222.25,222.16,8.5527874]
[1734114382476,1.5294,222.25,222.17,8.5527874]
[1734114383662,1.5294,222.25,222.17,0.12549]
[1734114383860,1.5294,222.25,222.14,8.5527874]
[1734114384077,1.5294,222.25,222.15,30.0]
[1734114384781,1.5294,222.25,222.15,38.5527874]
[1734114384990,1.5294,222.25,222.16,32.4551614]
[1734114385163,1.5294,222.25,222.17,30.0]
[1734114385867,1.5294,222.25,222.18,0.12549]
[1734114386072,20.0,222.28,222.2,8.5527874]
[1734114386781,1.5239,222.3,222.21,8.5527874]
[1734114387080,1.5239,222.3,222.21,38.5527874]
[1734114387462,1.5239,222.3,222.22,8.5527874]
[1734114387883,1.5239,222.3,222.23,8.5527874]
[1734114388184,1.5239,222.3,222.22,8.5527874]
[1734114389563,1.5239,222.3,222.23,30.0]
[1734114395083,11.2465,222.29,222.23,30.0]
[1734114397171,11.2465,222.29,222.2,8.5527874]
[1734114397810,11.2465,222.29,222.21,8.5527874]
[1734114398676,11.2465,222.29,222.22,30.0]
[1734114399593,0.12549,222.28,222.22,30.0]
[1734114399795,0.12549,222.28,222.16,32.3296714]
[1734114400083,0.12549,222.28,222.17,30.0]
[1734114400666,11.2475,222.27,222.17,30.0]
[1734114401090,11.2475,222.27,222.17,38.5527874]
[1734114401979,11.2475,222.27,222.17,30.0]
[1734114404086,20.0,222.24,222.17,30.0]
[1734114405173,11.2496,222.23,222.13,8.5527874]
[1734114405371,11.2496,222.23,222.14,30.0]
[1734114405582,20.0,222.2,222.14,30.0]
[1734114405892,20.0,222.2,222.13,8.5527874]
[1734114406092,11.2496,222.23,222.13,8.5527874]
[1734114407797,11.2496,222.23,222.14,8.5527874]
[1734114408673,11.2496,222.23,222.15,30.0]
[1734114410974,7.8704,222.22,222.15,30.0]
[1734114411698,11.2481,222.26,222.18,8.5527874]
[1734114411890,1.6613,222.27,222.18,0.6749368]
[1734114412082,1.6613,222.27,222.21,8.5527874]
[1734114412282,11.2462,222.3,222.21,8.5527874]
[1734114412698,11.2462,222.3,222.22,8.5527874]
[1734114413295,11.2462,222.3,222.21,38.5527874]
[1734114415604,11.2462,222.3,222.21,30.0]
[1734114415985,11.2462,222.3,222.21,38.5527874]
[1734114419403,11.2462,222.3,222.21,30.0]
[1734114419905,11.247,222.28,222.21,30.0]
[1734114421194,0.12549,222.27,222.21,30.0]
[1734114421797,20.0,222.27,222.21,30.0]
[1734114421997,31.248,222.26,222.21,30.0]
[1734114422392,31.248,222.26,222.16,8.5527874]
[1734114422592,31.248,222.26,222.17,30.0]
[1734114423309,1.6238,222.24,222.17,30.0]
[1734114424011,1.6238,222.24,222.17,38.5527874]
[1734114424697,0.12549,222.29,222.17,38.5527874]
[1734114424698,1.5031,222.29,222.22,8.5527874]
[1734114425088,1.5031,222.29,222.21,8.5527874]
[1734114425506,1.5031,222.29,222.2,8.5527874]
[1734114425711,1.5031,222.29,222.21,30.0]
[1734114426013,1.5031,222.29,222.23,8.5527874]
[1734114426603,1.5031,222.29,222.23,30.0]
[1734114427415,6.0526,222.33,222.25,8.5527874]
[1734114427722,6.0526,222.33,222.25,38.5527874]
[1734114427886,1.6407,222.34,222.25,38.5527874]
[1734114431124,1.6407,222.34,222.26,8.5527874]
[1734114431295,21.6407,222.34,222.26,38.5527874]
[1734114432917,21.6407,222.34,222.26,30.0]
[1734114433112,21.6407,222.34,222.28,8.5527874]
[1734114433359,20.0,222.34,222.28,38.5527874]
[1734114433515,20.0,222.34,222.29,8.5527874]
[1734114434248,20.0,222.34,222.29,38.5527874]
[1734114434433,1.644,222.39,222.31,8.5527874]
[1734114435219,1.644,222.39,222.31,38.5527874]
[1734114435923,1.644,222.39,222.31,30.0]
[1734114437050,6.1011,222.43,222.37,8.5527874]
[1734114437217,1.6428,222.44,222.37,8.5527874]
[1734114437412,1.6428,222.44,222.38,8.5527874]
[1734114438817,1.6428,222.44,222.37,8.6782774]
[1734114439019,1.6428,222.44,222.38,30.0]
[1734114439642,6.4049,222.48,222.39,0.79989843]
[1734114439831,12.8825,222.49,222.42,13.33714313]
[1734114440470,12.8825,222.49,222.41,13.33714313]
[1734114440673,12.8825,222.49,222.42,30.0]
[1734114441939,0.5313107,222.51,222.44,13.33714313]
[1734114442137,0.5313107,222.51,222.46,13.33714313]
[1734114442535,0.5313107,222.51,222.45,14.01122647]
[1734114442736,0.5313107,222.51,222.44,30.0]
[1734114442941,0.5313107,222.51,222.44,43.33714313]
[1734114443147,0.5313107,222.51,222.45,13.33714313]
[1734114443639,0.5313107,222.51,222.46,30.0]
[1734114445243,0.5313107,222.51,222.46,43.33714313]
[1734114445563,0.5313107,222.51,222.46,30.0]
[1734114450954,0.5313107,222.51,222.42,13.33714313]
[1734114451156,0.5313107,222.51,222.42,43.33714313]
[1734114451356,0.5313107,222.51,222.42,30.0]
[1734114452387,11.2359,222.5,222.42,30.0]
[1734114452759,30.168574,222.49,222.42,30.0]
[1734114453100,11.2359,222.5,222.43,0.67432979]
[1734114453264,20.5313107,222.51,222.43,14.01147292]
[1734114453456,0.5313107,222.51,222.43,14.01147292]
[1734114453656,0.5313107,222.51,222.43,0.67432979]
[1734114453857,0.5313107,222.51,222.42,13.33714313]
[1734114454100,0.5313107,222.51,222.43,13.33714313]
[1734114454306,0.5313107,222.51,222.44,13.33714313]
[1734114455499,0.5313107,222.51,222.46,13.33714313]
[1734114455709,0.5313107,222.51,222.47,13.46263313]
[1734114456013,0.5313107,222.51,222.5,13.33714313]
[1734114456381,0.5313107,222.51,222.49,13.33714313]
[1734114456690,0.5313107,222.51,222.5,13.46263313]
[1734114457708,0.5313107,222.51,222.47,33.33714313]
[1734114458010,0.5313107,222.51,222.49,13.33714313]
[1734114459705,0.5313107,222.51,222.5,30.0]
[1734114466328,0.5313107,222.51,222.44,0.12549]
[1734114466623,0.5313107,222.51,222.45,38.52629148]
[1734114466802,0.5313107,222.51,222.45,30.0]
[1734114468026,0.5313107,222.51,222.44,0.12549]
[1734114469213,0.5313107,222.51,222.43,0.12549]
[1734114470436,0.5313107,222.51,222.41,5.37807332]
[1734114470437,0.5313107,222.51,222.41,8.52629148]
[1734114470730,2.0754107,222.51,222.41,0.12549]
[1734114471037,2.0754107,222.51,222.42,30.0]
[1734114473309,11.2359,222.5,222.42,30.0]
[1734114473522,20.0,222.47,222.42,30.0]
[1734114474541,1.546,222.44,222.32,8.52629148]
[1734114474710,1.546,222.44,222.35,30.0]
[1734114475538,11.2394,222.43,222.35,30.0]
[1734114476322,23.776884,222.42,222.35,30.0]
[1734114477320,23.776884,222.42,222.3,8.52629148]
[1734114477630,23.776884,222.42,222.3,30.0]
[1734114477631,11.2405,222.41,222.3,30.0]
[1734114479607,23.776884,222.4,222.3,30.0]
[1734114479918,23.776884,222.38,222.3,30.0]
[1734114480825,1.5978,222.39,222.3,38.52629148]
[1734114481017,1.5978,222.39,222.31,9.32633142]
[1734114481212,1.5978,222.39,222.32,30.0]
[1734114481419,1.5978,222.39,222.33,0.79995574]
[1734114481932,1.5978,222.39,222.32,30.0]
[1734114482733,1.5978,222.39,222.31,0.12549]
[1734114482917,1.5978,222.39,222.32,0.67450941]
[1734114483519,1.5978,222.39,222.33,0.12549]
[1734114483754,11.2401,222.42,222.33,0.12549]
[1734114483755,6.4435,222.43,222.35,8.52629148]
[1734114483960,1.6437,222.44,222.35,8.52629148]
[1734114484536,1.6437,222.44,222.36,0.67438675]
[1734114485952,1.6437,222.44,222.37,30.0]
[1734114488548,12.8831,222.44,222.37,30.0]
[1734114489164,12.8831,222.44,222.31,13.33694453]
[1734114489361,12.8831,222.44,222.33,0.12549]
[1734114489527,12.8831,222.44,222.33,13.46243453]
[1734114489939,12.8831,222.44,222.33,0.12549]
[1734114491166,12.8831,222.44,222.33,13.46243453]
[1734114491334,1.6437,222.44,222.36,0.12549]
[1734114491944,1.6437,222.44,222.36,30.12549]
[1734114495558,0.6437,222.44,222.36,30.12549]
[1734114496340,6.4703,222.43,222.36,30.0]
[1734114496545,20.0,222.39,222.22,13.33694453]
[1734114496744,20.0,222.39,222.26,30.0]
[1734114497140,20.0,222.4,222.26,30.0]
[1734114497463,20.0,222.4,222.27,0.12549]
[1734114497644,11.2415,222.39,222.27,30.12549]
[1734114498539,12.7561,222.39,222.27,30.12549]
[1734114499146,12.7561,222.39,222.29,0.12549]
[1734114499357,12.7561,222.39,222.29,30.12549]
[1734114500051,1.5146,222.39,222.31,0.12549]
[1734114500251,1.5146,222.39,222.31,43.46243453]
[1734114500562,1.5146,222.39,222.31,30.12549]
[1734114503371,1.5146,222.39,222.31,30.0]
[1734114504244,11.242,222.38,222.31,30.0]
[1734114504467,23.776884,222.37,222.31,30.0]
[1734114504857,23.776884,222.37,222.24,0.12549]
[1734114505173,23.776884,222.37,222.25,30.0]
[1734114505471,11.243,222.36,222.25,30.0]
[1734114506667,11.243,222.36,222.26,20.0]
[1734114508952,1.5146,222.39,222.29,0.12549]
[1734114509265,1.5146,222.39,222.31,8.53869865]
[1734114509463,1.5146,222.39,222.3,8.66418865]
[1734114510048,1.5146,222.39,222.31,0.67451715]
[1734114510863,1.5146,222.39,222.32,30.0]
[1734114511154,11.24,222.42,222.32,30.0]
[1734114511364,11.24,222.42,222.33,0.67447519]
[1734114512166,1.6515,222.44,222.34,30.0]
[1734114512346,17.7101,222.43,222.35,0.6744789]
[1734114512543,11.2398,222.43,222.35,0.6744789]
[1734114512948,1.6515,222.44,222.36,0.12549]
[1734114513956,12.8906,222.44,222.36,30.0]
[1734114518668,12.8906,222.44,222.31,1.51]
[1734114518669,6.2782,222.48,222.39,0.12549]
[1734114518867,6.2782,222.48,222.39,14.13688301]
[1734114519265,1.6298,222.5,222.39,14.13688301]
[1734114519773,1.6298,222.5,222.39,0.79976301]
[1734114520374,1.6298,222.5,222.37,20.12549]
[1734114520573,31.2364,222.49,222.34,13.33712]
[1734114520750,31.2364,222.49,222.36,13.33712]
[1734114520949,31.2364,222.49,222.37,13.46261]
[1734114521675,31.2364,222.49,222.39,30.0]
[1734114525768,11.2364,222.49,222.4,0.12549]
[1734114526071,11.2364,222.49,222.4,30.12549]
[1734114527382,11.2364,222.49,222.4,30.0]
[1734114531067,11.2364,222.49,222.36,0.12549]
[1734114531263,11.2364,222.49,222.37,30.0]
[1734114532182,11.2374,222.47,222.37,30.0]
[1734114534363,23.776884,222.43,222.37,30.0]
[1734114534557,20.0,222.4,222.26,1.5418]
[1734114534766,20.0,222.4,222.28,30.0]
[1734114535185,23.776884,222.39,222.28,30.0]
[1734114535771,20.0,222.36,222.28,30.0]
[1734114536366,11.2435,222.35,222.28,30.0]
[1734114536781,11.2435,222.35,222.22,0.12549]
[1734114536967,11.2435,222.35,222.22,38.66129898]
[1734114537169,11.2435,222.35,222.22,43.35296515]
[1734114537963,11.2435,222.35,222.22,30.0]
[1734114538170,11.2435,222.35,222.23,0.12549]
[1734114538488,11.2435,222.35,222.24,30.0]
[1734114538985,23.776884,222.34,222.24,30.0]
[1734114540511,11.2445,222.33,222.24,30.0]
[1734114541791,11.2445,222.33,222.22,0.12549]
[1734114542379,11.2445,222.33,222.21,1.5668]
[1734114542687,12.767,222.33,222.17,24.027864]
[1734114542867,12.767,222.33,222.19,0.12549]
[1734114543065,12.767,222.33,222.21,0.12549]
[1734114543268,12.767,222.33,222.23,0.12549]
[1734114543269,11.2445,222.33,222.23,0.12549]
[1734114544695,11.2445,222.33,222.23,30.12549]
[1734114551593,11.2426,222.37,222.27,13.47845515]
[1734114551994,11.2426,222.37,222.28,30.0]
[1734114553700,11.2426,222.37,222.27,0.12549]
[1734114554087,11.2426,222.37,222.27,13.35296515]
[1734114554477,11.2426,222.37,222.26,13.60394515]
[1734114554891,11.2426,222.37,222.26,0.25098]
[1734114556202,11.2426,222.37,222.23,13.35296515]
[1734114556701,23.776884,222.36,222.24,30.0]
[1734114557187,20.0,222.33,222.24,30.0]
[1734114557706,11.245,222.32,222.24,30.0]
[1734114558691,11.245,222.32,222.19,24.027864]
[1734114558892,11.245,222.32,222.21,0.25098]
[1734114559706,11.245,222.32,222.2,0.25098]
[1734114560905,11.245,222.32,222.2,8.79869031]
[1734114561603,11.245,222.32,222.2,7.79869031]
[1734114562713,11.245,222.32,222.21,30.0]
[1734114565802,11.245,222.32,222.22,8.67320031]
[1734114566001,11.245,222.32,222.23,30.0]
[1734114566202,11.245,222.32,222.23,38.54771031]
[1734114566403,20.0,222.33,222.24,0.92574548]
[1734114566604,11.2436,222.35,222.26,8.67320031]
[1734114567796,11.2436,222.35,222.25,0.12549]
[1734114568304,11.2436,222.35,222.25,30.12549]
[1734114570417,1.0,222.37,222.25,38.67320031]
[1734114570711,1.0,222.37,222.31,8.54771031]
[1734114571293,1.0,222.37,222.3,0.12549]
[1734114571502,1.0,222.37,222.31,0.12549]
[1734114572000,1.0,222.37,222.36,8.54771031]